{"text_format":"3","workbook":"xlsx","n_sheets":2,"sheets":["DỮ LIỆU TĂNG TRƯỞNG","BIỂU ĐỒ TĂNG TRƯỞNG"],"not_rendered":{"charts":1,"defined_names":3},"read":"whole","date_system":"1900"}

{"sheet":"DỮ LIỆU TĂNG TRƯỞNG","index":0,"n_rows":23,"n_cols":8,"rows_kept":23,"merged":[[0,1,0,7],[1,2,1,7]]}
[null,"Tăng trưởng của bé "]
[null,"Tên bé:","Tên"]
[null,"Tuổi","Pound","Ounce","Cân nặng (Ib.)","Cân nặng\nTỷ lệ phần trăm","Chiều dài (inch)","Chiều dài\nTỷ lệ phần trăm"]
[null,"Lúc sinh",7,null,{"$f":"IF(COUNT(Dữ_liệu[[#This Row],[Pound]:[Ounce]])>0,Dữ_liệu[[#This Row],[Pound]]+(Dữ_liệu[[#This Row],[Ounce]]/16),NA())","v":7},40,19.5,70]
[null,"4 ngày",6,8,{"$f":"IF(COUNT(Dữ_liệu[[#This Row],[Pound]:[Ounce]])>0,Dữ_liệu[[#This Row],[Pound]]+(Dữ_liệu[[#This Row],[Ounce]]/16),NA())","v":6.5},41,19.5,70]
[null,"7 ngày",6,4.8,{"$f":"IF(COUNT(Dữ_liệu[[#This Row],[Pound]:[Ounce]])>0,Dữ_liệu[[#This Row],[Pound]]+(Dữ_liệu[[#This Row],[Ounce]]/16),NA())","v":6.3},42,20,71]
[null,"11 ngày",6,9.6,{"$f":"IF(COUNT(Dữ_liệu[[#This Row],[Pound]:[Ounce]])>0,Dữ_liệu[[#This Row],[Pound]]+(Dữ_liệu[[#This Row],[Ounce]]/16),NA())","v":6.6},43,20,71]
[null,"14 ngày",7,null,{"$f":"IF(COUNT(Dữ_liệu[[#This Row],[Pound]:[Ounce]])>0,Dữ_liệu[[#This Row],[Pound]]+(Dữ_liệu[[#This Row],[Ounce]]/16),NA())","v":7},44,20,71]
[null,"18 ngày",7,12,{"$f":"IF(COUNT(Dữ_liệu[[#This Row],[Pound]:[Ounce]])>0,Dữ_liệu[[#This Row],[Pound]]+(Dữ_liệu[[#This Row],[Ounce]]/16),NA())","v":7.75},45,21,72]
[null,"21 ngày",8,8,{"$f":"IF(COUNT(Dữ_liệu[[#This Row],[Pound]:[Ounce]])>0,Dữ_liệu[[#This Row],[Pound]]+(Dữ_liệu[[#This Row],[Ounce]]/16),NA())","v":8.5},46,21,72]
[null,"25 ngày",null,null,{"$f":"IF(COUNT(Dữ_liệu[[#This Row],[Pound]:[Ounce]])>0,Dữ_liệu[[#This Row],[Pound]]+(Dữ_liệu[[#This Row],[Ounce]]/16),NA())","v":{"$error":"#N/A"}}]
[null,"28 ngày",null,null,{"$f":"IF(COUNT(Dữ_liệu[[#This Row],[Pound]:[Ounce]])>0,Dữ_liệu[[#This Row],[Pound]]+(Dữ_liệu[[#This Row],[Ounce]]/16),NA())","v":{"$error":"#N/A"}}]
[null,"5 tuần",null,null,{"$f":"IF(COUNT(Dữ_liệu[[#This Row],[Pound]:[Ounce]])>0,Dữ_liệu[[#This Row],[Pound]]+(Dữ_liệu[[#This Row],[Ounce]]/16),NA())","v":{"$error":"#N/A"}}]
[null,"6 tuần",null,null,{"$f":"IF(COUNT(Dữ_liệu[[#This Row],[Pound]:[Ounce]])>0,Dữ_liệu[[#This Row],[Pound]]+(Dữ_liệu[[#This Row],[Ounce]]/16),NA())","v":{"$error":"#N/A"}}]
[null,"7 tuần",null,null,{"$f":"IF(COUNT(Dữ_liệu[[#This Row],[Pound]:[Ounce]])>0,Dữ_liệu[[#This Row],[Pound]]+(Dữ_liệu[[#This Row],[Ounce]]/16),NA())","v":{"$error":"#N/A"}}]
[null,"2 tháng",null,null,{"$f":"IF(COUNT(Dữ_liệu[[#This Row],[Pound]:[Ounce]])>0,Dữ_liệu[[#This Row],[Pound]]+(Dữ_liệu[[#This Row],[Ounce]]/16),NA())","v":{"$error":"#N/A"}}]
[null,"3 tháng",null,null,{"$f":"IF(COUNT(Dữ_liệu[[#This Row],[Pound]:[Ounce]])>0,Dữ_liệu[[#This Row],[Pound]]+(Dữ_liệu[[#This Row],[Ounce]]/16),NA())","v":{"$error":"#N/A"}}]
[null,"6 tháng",null,null,{"$f":"IF(COUNT(Dữ_liệu[[#This Row],[Pound]:[Ounce]])>0,Dữ_liệu[[#This Row],[Pound]]+(Dữ_liệu[[#This Row],[Ounce]]/16),NA())","v":{"$error":"#N/A"}}]
[null,"9 tháng",null,null,{"$f":"IF(COUNT(Dữ_liệu[[#This Row],[Pound]:[Ounce]])>0,Dữ_liệu[[#This Row],[Pound]]+(Dữ_liệu[[#This Row],[Ounce]]/16),NA())","v":{"$error":"#N/A"}}]
[null,"12 tháng",null,null,{"$f":"IF(COUNT(Dữ_liệu[[#This Row],[Pound]:[Ounce]])>0,Dữ_liệu[[#This Row],[Pound]]+(Dữ_liệu[[#This Row],[Ounce]]/16),NA())","v":{"$error":"#N/A"}}]
[null,"18 tháng",null,null,{"$f":"IF(COUNT(Dữ_liệu[[#This Row],[Pound]:[Ounce]])>0,Dữ_liệu[[#This Row],[Pound]]+(Dữ_liệu[[#This Row],[Ounce]]/16),NA())","v":{"$error":"#N/A"}}]
[null,"24 tháng",null,null,{"$f":"IF(COUNT(Dữ_liệu[[#This Row],[Pound]:[Ounce]])>0,Dữ_liệu[[#This Row],[Pound]]+(Dữ_liệu[[#This Row],[Ounce]]/16),NA())","v":{"$error":"#N/A"}}]
[null,"36 tháng",null,null,{"$f":"IF(COUNT(Dữ_liệu[[#This Row],[Pound]:[Ounce]])>0,Dữ_liệu[[#This Row],[Pound]]+(Dữ_liệu[[#This Row],[Ounce]]/16),NA())","v":{"$error":"#N/A"}}]

{"sheet":"BIỂU ĐỒ TĂNG TRƯỞNG","index":1,"n_rows":1,"n_cols":2,"rows_kept":1,"merged":[[0,1,1,1]]}
[null,"BIỂU ĐỒ TĂNG TRƯỞNG CỦA BÉ"]